fUST/lending_fUST_20240725
["ID","MTS","AMOUNT","RATE_DAILY","PERIOD"]
[333125851,1721879441492,-500.0,0.00013698,2]
[333125853,1721879441504,-500.0,0.00013698,2]
[333125855,1721879441515,-500.0,0.00013698,2]
[333125858,1721879441526,-676.75,0.00013698,2]
[333125860,1721879441537,-500.0,0.00013698,2]
[333125862,1721879441548,-502.78747536,0.00013698,2]
[333125864,1721879441558,-640.32333384,0.00013698,2]
[333125867,1721879441568,-503.71713332,0.00013698,2]
[333125869,1721879441578,-500.0,0.00013698,2]
[333125871,1721879441588,-502.04426339,0.00013698,2]
[333125873,1721879441598,-791.89,0.00013698,2]
[333125876,1721879441610,-500.0,0.00013698,2]
[333125878,1721879441623,-500.0,0.00013698,2]
[333125880,1721879441632,-151.0,0.00013698,2]
[333125882,1721879441643,-151.0,0.00013698,2]
[333125885,1721879441658,-151.0,0.00013698,2]
[333125887,1721879441667,-151.0,0.00013698,2]
[333125889,1721879441677,-500.0,0.00013698,2]
[333125891,1721879441687,-500.0,0.00013698,2]
[333125893,1721879441697,-1629.53,0.00013698,2]
[333125896,1721879441709,-151.0,0.00013698,2]
[333125898,1721879441720,-151.0,0.00013698,2]
[333125900,1721879441730,-171.762607,0.00013698,2]
[333125903,1721879441743,-552.17,0.00013698,2]
[333125905,1721879441753,-300.0,0.00013698,2]
[333125907,1721879441763,-1150.66,0.00013698,2]
[333125909,1721879441773,-500.0,0.00013698,2]
[333125912,1721879441783,-510.11642446,0.00013698,2]
[333125914,1721879441792,-500.0,0.00013698,2]
[333125917,1721879441802,-627.9,0.00013698,2]
[333125919,1721879441813,-500.0,0.00013698,2]
[333125922,1721879441824,-500.0,0.00013698,2]
[333125925,1721879441834,-1362.57,0.00013698,2]
[333125927,1721879441845,-500.0,0.00013698,2]
[333125930,1721879441856,-500.0,0.00013698,2]
[333125933,1721879441868,-500.0,0.00013698,2]
[333125935,1721879441879,-151.0,0.00013698,2]
[333125938,1721879441890,-500.0,0.00013698,2]
[333125941,1721879441903,-151.0,0.00013698,2]
[333125944,1721879441914,-500.0,0.00013698,2]
[333125946,1721879441924,-500.0,0.00013698,2]
[333125949,1721879441935,-500.0,0.00013698,2]
[333125952,1721879441946,-723.48,0.00013698,2]
[333125954,1721879441956,-500.0,0.00013698,2]
[333125957,1721879441966,-1555.76,0.00013698,2]
[333125960,1721879441977,-500.0,0.00013698,2]
[333125962,1721879441989,-556.49,0.00013698,2]
[333125965,1721879442000,-500.0,0.00013698,2]
[333125968,1721879442011,-500.0,0.00013698,2]
[333125971,1721879442024,-500.0,0.00013698,2]
[333125973,1721879442036,-500.0,0.00013698,2]
[333125976,1721879442047,-500.0,0.00013698,2]
[333125979,1721879442059,-182.24329045,0.00013698,2]
[333125981,1721879442069,-500.0,0.00013698,2]
[333125984,1721879442079,-500.0,0.00013698,2]
[333125986,1721879442089,-1112.7,0.00013698,2]
[333125988,1721879442099,-515.76032783,0.00013698,2]
[333125991,1721879442110,-500.0,0.00013698,2]
[333125994,1721879442120,-500.0,0.00013698,2]
[333125996,1721879442132,-500.22810998,0.00013698,2]
[333125999,1721879442142,-500.0,0.00013698,2]
[333126001,1721879442153,-500.0,0.00013698,2]
[333126003,1721879442166,-500.0,0.00013698,2]
[333126005,1721879442176,-500.0,0.00013698,2]
[333126007,1721879442187,-500.0,0.00013698,2]
[333126009,1721879442198,-500.0,0.00013698,2]
[333126011,1721879442208,-500.0,0.00013698,2]
[333126013,1721879442218,-500.0,0.00013698,2]
[333126015,1721879442228,-500.0,0.00013698,2]
[333126017,1721879442238,-500.0,0.00013698,2]
[333126019,1721879442248,-503.83353162,0.00013698,2]
[333126021,1721879442258,-500.0,0.00013698,2]
[333126023,1721879442268,-445.07089119,0.00013698,2]
[333126025,1721879442279,-500.0,0.00013698,2]
[333126027,1721879442289,-500.0,0.00013698,2]
[333126029,1721879442299,-500.0,0.00013698,2]
[333126031,1721879442309,-500.0,0.00013698,2]
[333126033,1721879442320,-1819.36,0.00013698,2]
[333126035,1721879442330,-500.0,0.00013698,2]
[333126037,1721879442342,-500.0,0.00013698,2]
[333126039,1721879442352,-505.01499994,0.00013698,2]
[333126041,1721879442363,-500.0,0.00013698,2]
[333126043,1721879442373,-500.0,0.00013698,2]
[333126046,1721879442384,-579.63,0.00013698,2]
[333126048,1721879442398,-151.0,0.00013698,2]
[333126051,1721879442411,-500.0,0.00013698,2]
[333126054,1721879442421,-500.0,0.00013698,2]
[333126056,1721879442431,-413.72043881,0.00013698,2]
[333126058,1721879442442,-500.0,0.00013698,2]
[333126060,1721879442451,-500.0,0.00013698,2]
[333126062,1721879442461,-500.0,0.00013698,2]
[333126064,1721879442472,-500.0,0.00013698,2]
[333126066,1721879442483,-500.0,0.00013698,2]
[333126068,1721879442495,-509.57344492,0.00013698,2]
[333126070,1721879442506,-501.55215127,0.00013698,2]
[333126072,1721879442517,-500.0,0.00013698,2]
[333126074,1721879442527,-152.658298,0.00013698,2]
[333126076,1721879442537,-1011.0,0.00013698,2]
[333126078,1721879442546,-1064.91,0.00013698,2]
[333126080,1721879442556,-500.0,0.00013698,2]
[333126082,1721879442568,-501.29786532,0.00013698,2]
[333126084,1721879442579,-500.0,0.00013698,2]
[333126086,1721879442591,-500.0,0.00013698,2]
[333126088,1721879442601,-500.0,0.00013698,2]
[333126091,1721879442612,-500.0,0.00013698,2]
[333126093,1721879442624,-1369.26,0.00013698,2]
[333126095,1721879442635,-500.0,0.00013698,2]
[333126097,1721879442646,-501.03202998,0.00013698,2]
[333126099,1721879442658,-506.52407148,0.00013698,2]
[333126101,1721879442669,-500.0,0.00013698,2]
[333126104,1721879442680,-2059.83,0.00013698,2]
[333126106,1721879442690,-500.0,0.00013698,2]
[333126108,1721879442701,-500.0,0.00013698,2]
[333126110,1721879442713,-229.774243,0.00013698,2]
[333126112,1721879442724,-229.774243,0.00013698,2]
[333126114,1721879442735,-500.0,0.00013698,2]
[333126116,1721879442747,-229.774243,0.00013698,2]
[333126119,1721879442759,-229.774243,0.00013698,2]
[333126121,1721879442770,-229.774243,0.00013698,2]
[333126123,1721879442782,-500.0,0.00013698,2]
[333126125,1721879442792,-229.774243,0.00013698,2]
[333126127,1721879442802,-229.774243,0.00013698,2]
[333126130,1721879442814,-229.774243,0.00013698,2]
[333126132,1721879442826,-229.774243,0.00013698,2]
[333126134,1721879442838,-229.774243,0.00013698,2]
[333126136,1721879442848,-1456.2,0.00013698,2]
[333126138,1721879442859,-506.07833129,0.00013698,2]
[333126141,1721879442872,-151.0,0.00013698,2]
[333126143,1721879442882,-500.0,0.00013698,2]
[333126145,1721879442893,-503.42279758,0.00013698,2]
[333126147,1721879442904,-511.07937043,0.00013698,2]
[333126149,1721879442914,-500.0,0.00013698,2]
[333126151,1721879442924,-555.00940963,0.00013698,2]
[333126153,1721879442934,-2191.38,0.00013698,2]
[333126155,1721879442944,-500.0,0.00013698,2]
[333126157,1721879442954,-500.0,0.00013698,2]
[333126159,1721879442964,-500.0,0.00013698,2]
[333126161,1721879442974,-500.0,0.00013698,2]
[333126163,1721879442986,-500.0,0.00013698,2]
[333126165,1721879442996,-820.41,0.00013698,2]
[333126167,1721879443007,-510.17837317,0.00013698,2]
[333126169,1721879443017,-2131.27,0.00013698,2]
[333126171,1721879443027,-500.0,0.00013698,2]
[333126174,1721879443040,-500.0,0.00013698,2]
[333126176,1721879443050,-505.76600272,0.00013698,2]
[333126178,1721879443061,-500.0,0.00013698,2]
[333126180,1721879443071,-3804.14,0.00013698,2]
[333126182,1721879443082,-143.75584775,0.00013698,2]
[333126206,1721879443299,-443.98452657,0.00013698,2]
[333126244,1721879443668,-273.37336231,9.9e-05,2]
[333126246,1721879443680,-263.71962568,0.00013698,2]
[333126248,1721879443691,-1724.2,0.00013698,2]
[333126250,1721879443701,-500.0,0.00013698,2]
[333126252,1721879443711,-433.64100553,0.00013698,2]
[333126254,1721879443721,-3711.53,0.00013698,2]
[333126256,1721879443732,-506.9,0.00013698,2]
[333126258,1721879443744,-500.0,0.00013698,2]
[333126260,1721879443755,-504.63636636,0.00013698,2]
[333126263,1721879443766,-500.0,0.00013698,2]
[333126265,1721879443776,-646.78,0.00013698,2]
[333126267,1721879443787,-500.0,0.00013698,2]
[333126269,1721879443797,-1503.81,0.00013698,2]
[333126271,1721879443808,-1977.71611063,0.00013698,2]
[333126274,1721879443823,-2324.30388937,0.00013698,2]
[333126276,1721879443834,-1713.93,0.00013698,2]
[333126278,1721879443846,-500.0,0.00013698,2]
[333126280,1721879443859,-500.0,0.00013698,2]
[333126283,1721879443871,-500.0,0.00013698,2]
[333126285,1721879443882,-848.87,0.00013698,2]
[333126287,1721879443895,-159.80445697,0.00013698,2]
[333126289,1721879443908,-500.0,0.00013698,2]
[333126291,1721879443920,-500.0,0.00013698,2]
[333126293,1721879443930,-500.0,0.00013698,2]
[333126295,1721879443942,-151.0,0.00013698,2]
[333126297,1721879443952,-151.0,0.00013698,2]
[333126299,1721879443962,-151.0,0.00013698,2]
[333126301,1721879443972,-151.0,0.00013698,2]
[333126304,1721879443982,-7197.46,0.00013698,2]
[333126306,1721879443992,-794.36,0.00013698,2]
[333126308,1721879444004,-278.48332177,0.00013698,2]
[333126311,1721879444024,-221.51667823,0.00013698,2]
[333126313,1721879444036,-297.863932,0.00013698,2]
[333126315,1721879444048,-500.0,0.00013698,2]
[333126317,1721879444059,-677.44,0.00013698,2]
[333126320,1721879444071,-500.0,0.00013698,2]
[333126322,1721879444082,-10.54759134,0.00013698,2]
[333126324,1721879444094,-494.03117167,0.00013698,2]
[333126326,1721879444105,-500.0,0.00013698,2]
[333126328,1721879444115,-504.16219307,0.00013698,2]
[333126330,1721879444125,-306.13005826,0.00013698,2]
[333126332,1721879444138,-4943.71235841,0.00013698,2]
[333128890,1721880560131,-458.0246873,8.773e-05,2]
[333128891,1721880560159,-163.360105,9.309e-05,2]
[333128892,1721880560184,-200.0,9.31e-05,2]
[333128893,1721880560209,-163.360105,9.353e-05,2]
[333128894,1721880560234,-163.360105,9.397e-05,2]
[333128895,1721880560254,-200.0,9.429e-05,2]
[333128896,1721880560276,-163.360105,9.441e-05,2]
[333128897,1721880560298,-163.360105,9.485e-05,2]
[333128898,1721880560321,-163.360105,9.53e-05,2]
[333128899,1721880560341,-163.360105,9.574e-05,2]
[333128900,1721880560362,-163.360105,9.618e-05,2]
[333128901,1721880560383,-163.360105,9.662e-05,2]
[333128902,1721880560408,-163.360105,9.706e-05,2]
[333128903,1721880560432,-163.360105,9.75e-05,2]
[333128904,1721880560453,-163.360105,9.794e-05,2]
[333128905,1721880560475,-300.0,9.998e-05,2]
[333128906,1721880560496,-156.53065403,9.999e-05,2]
[333128907,1721880560518,-154.71377951,9.999e-05,2]
[333128908,1721880560540,-600.34409866,9.999e-05,2]
[333128909,1721880560562,-164.00340024,9.999e-05,2]
[333128910,1721880560582,-323.41699537,9.999e-05,2]
[333128911,1721880560604,-253.78921446,9.999e-05,2]
[333128912,1721880560626,-248.87416602,9.999e-05,2]
[333128913,1721880560653,-155.55000015,9.999e-05,2]
[333128914,1721880560677,-154.71379183,9.999e-05,2]
[333128915,1721880560701,-247.05162355,9.999e-05,2]
[333128916,1721880560725,-288.18210605,9.999e-05,2]
[333128917,1721880560749,-188.0737834,9.999e-05,2]
[333128918,1721880560772,-404.16487348,9.999e-05,2]
[333128919,1721880560796,-305.39065986,9.999e-05,2]
[333128920,1721880560820,-459.2503171,9.999e-05,2]
[333128921,1721880560844,-778.99945191,9.999e-05,2]
[333128922,1721880560870,-533.46933228,9.999e-05,2]
[333128923,1721880560896,-154.69833824,0.0001,2]
[333128924,1721880560918,-154.71377951,0.0001,2]
[333128925,1721880560940,-24900.0,0.0001016,2]
[333128926,1721880560961,-400.0,0.0001068,2]
[333128927,1721880560983,-553.59,0.00010959,2]
[333128928,1721880561007,-420.0,0.00010998,2]
[333128929,1721880561028,-3032.336714,0.00011,2]
[333128930,1721880565531,273.37336231,9.9e-05,2]
[333128931,1721880573568,273.37336231,9.9e-05,2]
[333128932,1721880581822,273.37336231,9.9e-05,2]
[333128933,1721880588577,200.0,0.0001,2]
[333128934,1721880588620,400.0,0.0001137,2]
[333128935,1721880589953,273.37336231,9.9e-05,2]
[333128936,1721880599983,273.37336231,9.9e-05,2]
[333128937,1721880608007,179.69074358,9.9e-05,2]
[333129044,1721880638108,-93.68261873,9.9e-05,2]
[333129046,1721880638119,-201.62954273,0.00012,2]
[333129048,1721880638131,-88.97183554,0.00012877,2]
[333129276,1721880640318,-64.02816446,0.00012877,2]
[333129277,1721880640328,-600.0,0.00013147,2]
[333129278,1721880640337,-620.95070725,0.00013174,2]
[333129279,1721880640346,-206.7208342,0.00013205,2]
[333129280,1721880640355,-312.3204449,0.00013308,2]
[333129281,1721880640365,-153.0,0.00013308,2]
[333129282,1721880640374,-412.9265194,0.00013308,2]
[333129283,1721880640383,-587.8658538,0.00013316,2]
[333129284,1721880640394,-306.0,0.00013316,2]
[333129285,1721880640404,-363.7188073,0.00013354,2]
[333129286,1721880640414,-200.0,0.00013425,2]
[333129287,1721880640424,-153.0,0.00013425,2]
[333129288,1721880640434,-367.51233122,0.00013431,2]
[333129289,1721880640447,-300.0,0.00013594,2]
[333129290,1721880640456,-1610.18207489,0.00013595,2]
[333129291,1721880640465,-1610.18207487,0.00013596,2]
[333129292,1721880640475,-1610.18207487,0.00013597,2]
[333129293,1721880640484,-1610.18207487,0.00013597,2]
[333129294,1721880640493,-1610.18207487,0.00013598,2]
[333129295,1721880640502,-20231.41955795,0.00013598,2]
[333129296,1721880640512,-2000.0,0.00013598,2]
[333129297,1721880640523,-150.112233,0.000136,2]
[333129299,1721880640535,-150.112233,0.000136,2]
[333129318,1721880640545,-150.112233,0.000136,2]
[333129321,1721880640715,-150.112233,0.000136,2]
[333129323,1721880640727,-150.112233,0.000136,2]
[333129325,1721880640740,-150.112233,0.000136,2]
[333129327,1721880640753,-150.112233,0.000136,2]
[333129329,1721880640762,-150.112233,0.000136,2]
[333129331,1721880640771,-2316.42646773,0.00013608,2]
[333129594,1721880643161,-1115.42130348,0.00013608,2]
[333129601,1721880643218,-1875.03827501,0.00013608,2]
[333129603,1721880643229,-221486.80904955,0.00013688,2]
[333129606,1721880643242,-9421.8,0.00013688,2]
[333129610,1721880643270,-4541.69450745,0.00013688,2]
[333129612,1721880643281,-11898.74301893,0.00013698,2]
[333129914,1721880646164,-273.37336231,9.9e-05,2]
[333129917,1721880646174,-40.62663769,0.00013498,2]
[333129932,1721880646273,-2150.18828645,0.00013498,2]
[333129934,1721880646283,-604.17763955,0.00013698,2]
[333130704,1721881697233,-200.0,9.424e-05,2]
[333130705,1721881697261,-200.0,9.43e-05,2]
[333130706,1721881697289,-300.0,9.998e-05,2]
[333130707,1721881697317,-408.54411509,9.999e-05,2]
[333130708,1721881697343,-495.502727,9.999e-05,2]
[333130709,1721881697369,-391.34304736,9.999e-05,2]
[333130710,1721881697396,-533.46933228,9.999e-05,2]
[333130711,1721881697424,-459.2503171,9.999e-05,2]
[333130712,1721881697449,-780.42152245,9.999e-05,2]
[333130713,1721881697474,-188.27607642,9.999e-05,2]
[333130714,1721881697501,-159.44601698,9.999e-05,2]
[333130715,1721881697527,-161.56351373,0.0001,2]
[333130716,1721881697553,-24900.0,0.00010253,2]
[333130717,1721881697577,-400.0,0.000108,2]
[333130718,1721881697602,-168.82,0.00010959,2]
[333130719,1721881697634,-420.0,0.00010998,2]
[333130720,1721881697931,-178.571432,0.00011776,2]
[333130721,1721881697963,-178.571432,0.00012083,2]
[333130722,1721881697991,-434.0,0.00012098,2]
[333130723,1721881698019,-178.571432,0.00012389,2]
[333130724,1721881698045,-600.0,0.00012577,2]
[333130725,1721881698075,-2203.44208022,0.000129,2]
[333130726,1721881698102,-244.92,0.00012972,2]
[333130727,1721881698129,-2203.44208021,0.00013075,2]
[333130728,1721881698157,-587.8078635,0.00013308,2]
[333130729,1721881698184,-293.9329269,0.00013308,2]
[333130730,1721881698208,-293.9329269,0.00013308,2]
[333130731,1721881698235,-200.0,0.00013425,2]
[333130732,1721881698260,-160.0,0.00013451,3]
[333130733,1721881698286,-3000.0,0.000135,2]
[333130734,1721881698312,-150.0,0.00013523,2]
[333130735,1721881698339,-160.0,0.00013539,4]
[333130736,1721881698371,-263.9559007,0.00013561,2]
[333130737,1721881698397,-10112.11102812,0.00013598,2]
[333130738,1721881698423,-2328.98064897,0.00013598,2]
[333130739,1721881698448,-200.0,0.00013598,2]
[333130740,1721881698476,-2000.0,0.00013598,2]
[333130741,1721881698504,-1000.0,0.000136,2]
[333130742,1721881698534,-1000.0,0.000136,3]
[333130743,1721881698563,-1000.0,0.000136,4]
[333130744,1721881698590,-1000.0,0.000136,5]
[333130745,1721881698617,-150.112233,0.000136,2]
[333130746,1721881698644,-150.112233,0.000136,2]
[333130747,1721881698671,-3143.54096117,0.000136,2]
[333130748,1721881698699,-150.112233,0.000136,2]
[333130749,1721881698727,-150.112233,0.000136,2]
[333130750,1721881698754,-150.112233,0.000136,2]
[333130751,1721881698780,-367.51233122,0.00013601,2]
[333130752,1721881698807,-160.0,0.00013627,5]
[333130753,1721881698834,-6558.45784377,0.00013638,2]
[333130754,1721881698860,-83611.9706118,0.00013678,2]
[333130755,1721881698886,-167223.941224,0.00013688,2]
[333130756,1721881698913,-4640.65560816,0.00013698,2]
[333130757,1721881698940,-173.31015489,0.00013698,2]
[333130758,1721881698965,-2305.23084128,0.00013698,2]
[333130759,1721881698994,-16274.21667808,0.00013698,2]
[333130760,1721881699019,-154.69833824,0.00013698,2]
[333130761,1721881699047,-500.0,0.00013698,2]
[333130762,1721881699074,-568.42950689,0.00013698,2]
[333130763,1721881699101,-151.0,0.00013698,2]
[333130764,1721881699128,-151.0,0.00013698,2]
[333130765,1721881699156,-151.0,0.00013698,2]
[333130766,1721881699182,-151.0,0.00013698,2]
[333130767,1721881699210,-1112.21,0.00013698,2]
[333130768,1721881699238,-1112.21,0.00013698,2]
[333130769,1721881699265,-1112.21,0.00013698,2]
[333130770,1721881699293,-1112.21,0.00013698,2]
[333130771,1721881699321,-1112.21,0.00013698,2]
[333130772,1721881699350,-1112.21,0.00013698,2]
[333130773,1721881699377,-1112.21,0.00013698,2]
[333130774,1721881699403,-1112.21,0.00013698,2]
[333130775,1721881699429,-1112.21,0.00013698,2]
[333130776,1721881699456,-1112.21,0.00013698,2]
[333130777,1721881699485,-1112.21,0.00013698,2]
[333130778,1721881699514,-1112.21,0.00013698,2]
[333130779,1721881699540,-1112.21,0.00013698,2]
[333130780,1721881699568,-1112.21,0.00013698,2]
[333130781,1721881699595,-1112.21,0.00013698,2]
[333130782,1721881699624,-1112.21,0.00013698,2]
[333130783,1721881699653,-1112.21,0.00013698,2]
[333130785,1721881699682,-1112.21,0.00013698,2]
[333130787,1721881699710,-1112.21,0.00013698,2]
[333130788,1721881699739,-1112.21,0.00013698,2]
[333130789,1721881699769,-1112.21,0.00013698,2]
[333130790,1721881699798,-1112.21,0.00013698,2]
[333130791,1721881699828,-1112.21,0.00013698,2]
[333130792,1721881699857,-1112.37527453,0.00013698,2]
[333130793,1721881699885,-126131.39304104,0.00013698,2]
[333130794,1721881754187,-2512.20631259,9.899e-05,2]
[333130795,1721881754213,-200.0,9.9e-05,2]
[333130796,1721881754236,-287.93931924,0.0001,2]
[333130797,1721881754258,-844.13,0.00010959,2]
[333130798,1721881754280,-400.0,0.0001127,2]
[333130799,1721881757754,273.37336231,9.9e-05,2]
[333130800,1721881766589,273.37336231,9.9e-05,2]
[333130801,1721881775481,273.37336231,9.9e-05,2]
[333130802,1721881780109,164.82546112,9.999e-05,2]
[333130803,1721881792605,200.0,0.0001,2]
[333130804,1721881792633,400.0,0.0001137,2]
[333130805,1721881813503,218.00094881,9.999e-05,2]
[333130823,1721881832214,-312.13,0.000129,2]
[333130866,1721881838335,-1025.65158518,0.000129,2]
[333130869,1721881838349,-509.97787155,0.000129,2]
[333130871,1721881838359,-2001.8918007,0.00012997,2]
[333130873,1721881838371,-600.0,0.00013147,2]
[333130875,1721881838383,-300.0,0.00013199,2]
[333130878,1721881838394,-13244.05413198,0.000132,2]
[333130880,1721881838405,-293.9641968,0.00013308,2]
[333130882,1721881838416,-295.5100218,0.00013308,2]
[333130884,1721881838427,-587.8078635,0.000134,2]
[333130886,1721881838438,-4772.93083244,0.000135,2]
[333130888,1721881838449,-270.173,0.00013547,2]
[333130890,1721881838459,-263.9559008,0.00013561,2]
[333130893,1721881838471,-500.0,0.00013561,2]
[333130895,1721881838482,-5306.88604622,0.00013595,2]
[333130897,1721881838493,-1652.58156021,0.00013598,2]
[333130899,1721881838504,-200.0,0.00013598,2]
[333130901,1721881838515,-2000.0,0.00013598,2]
[333130903,1721881838526,-112443.83877231,0.00013698,2]
[333130905,1721881838535,-4619.04046055,0.00013698,2]
[333130907,1721881838546,-500.0,0.00013698,2]
[333130909,1721881838555,-1369.26,0.00013698,2]
[333130912,1721881838566,-445.69661909,0.00013698,2]
[333130914,1721881838577,-500.0,0.00013698,2]
[333130916,1721881838587,-500.0,0.00013698,2]
[333130918,1721881838596,-500.0,0.00013698,2]
[333130920,1721881838606,-500.0,0.00013698,2]
[333130922,1721881838616,-432.29984313,0.00013698,2]
[333130924,1721881838626,-500.0,0.00013698,2]
[333130926,1721881838637,-500.0,0.00013698,2]
[333130928,1721881838646,-500.0,0.00013698,2]
[333130930,1721881838657,-500.0,0.00013698,2]
[333130932,1721881838667,-500.0,0.00013698,2]
[333130934,1721881838677,-500.0,0.00013698,2]
[333130936,1721881838689,-151.418861,0.00013698,2]
[333130938,1721881838701,-500.0,0.00013698,2]
[333130940,1721881838710,-506.52407148,0.00013698,2]
[333130942,1721881838722,-500.0,0.00013698,2]
[333130944,1721881838733,-500.0,0.00013698,2]
[333130946,1721881838742,-500.0,0.00013698,2]
[333130948,1721881838751,-511.07937043,0.00013698,2]
[333130950,1721881838763,-555.00940963,0.00013698,2]
[333130953,1721881838776,-500.0,0.00013698,2]
[333130955,1721881838787,-510.17837317,0.00013698,2]
[333130957,1721881838797,-506.07833129,0.00013698,2]
[333130959,1721881838808,-528.73127813,0.00013698,2]
[333130961,1721881838818,-500.0,0.00013698,2]
[333130963,1721881838829,-505.76600272,0.00013698,2]
[333130965,1721881838840,-504.31050109,0.00013698,2]
[333130967,1721881838851,-500.0,0.00013698,2]
[333130969,1721881838861,-821.97,0.00013698,2]
[333130972,1721881838872,-485.26026358,0.00013698,2]
[333130974,1721881838884,-500.0,0.00013698,2]
[333130976,1721881838896,-500.0,0.00013698,2]
[333130978,1721881838906,-500.4101871,0.00013698,2]
[333130979,1721881838915,-500.0,0.00013698,2]
[333130982,1721881838925,-500.0,0.00013698,2]
[333130984,1721881838934,-500.0,0.00013698,2]
[333130986,1721881838944,-500.0,0.00013698,2]
[333130988,1721881838953,-395.46776959,0.00013698,2]
[333130989,1721881838962,-636.88,0.00013698,2]
[333130991,1721881838972,-151.0,0.00013698,2]
[333130993,1721881838981,-151.0,0.00013698,2]
[333130995,1721881838991,-151.0,0.00013698,2]
[333130997,1721881839000,-532.39716886,0.00013698,2]
[333130999,1721881839010,-151.0,0.00013698,2]
[333131001,1721881839021,-151.0,0.00013698,2]
[333131003,1721881839030,-151.0,0.00013698,2]
[333131005,1721881839041,-151.0,0.00013698,2]
[333131007,1721881839050,-151.0,0.00013698,2]
[333131009,1721881839060,-151.0,0.00013698,2]
[333131011,1721881839070,-171.762607,0.00013698,2]
[333131013,1721881839080,-500.0,0.00013698,2]
[333131015,1721881839093,-500.0,0.00013698,2]
[333131017,1721881839102,-500.0,0.00013698,2]
[333131019,1721881839112,-1580.33,0.00013698,2]
[333131021,1721881839122,-500.0,0.00013698,2]
[333131023,1721881839133,-500.0,0.00013698,2]
[333131025,1721881839143,-500.0,0.00013698,2]
[333131027,1721881839152,-504.29395403,0.00013698,2]
[333131029,1721881839162,-375.46728576,0.00013698,2]
[333131031,1721881839173,-500.64097119,0.00013698,2]
[333131033,1721881839182,-501.24621465,0.00013698,2]
[333131035,1721881839191,-500.0,0.00013698,2]
[333131037,1721881839201,-501.70296223,0.00013698,2]
[333131039,1721881839211,-500.0,0.00013698,2]
[333131041,1721881839220,-504.15385489,0.00013698,2]
[333131043,1721881839230,-151.0,0.00013698,2]
[333131045,1721881839240,-500.0,0.00013698,2]
[333131047,1721881839249,-500.0,0.00013698,2]
[333131049,1721881839259,-500.0,0.00013698,2]
[333131051,1721881839271,-504.65186402,0.00013698,2]
[333131053,1721881839280,-500.0,0.00013698,2]
[333131056,1721881839291,-332.21466352,0.00013698,2]
[333131058,1721881839301,-500.0,0.00013698,2]
[333131059,1721881839311,-500.0,0.00013698,2]
[333131061,1721881839321,-500.0,0.00013698,2]
[333131064,1721881839332,-502.19466042,0.00013698,2]
[333131066,1721881839342,-505.14755196,0.00013698,2]
[333131068,1721881839351,-505.89250674,0.00013698,2]
[333131070,1721881839361,-501.96862876,0.00013698,2]
[333131072,1721881839371,-514.38798571,0.00013698,2]
[333131074,1721881839380,-500.0,0.00013698,2]
[333131076,1721881839390,-500.0,0.00013698,2]
[333131078,1721881839400,-505.28780078,0.00013698,2]
[333131080,1721881839409,-504.23524958,0.00013698,2]
[333131082,1721881839419,-503.16004595,0.00013698,2]
[333131084,1721881839430,-568.12012604,0.00013698,2]
[333131086,1721881839440,-501.60133166,0.00013698,2]
[333131088,1721881839450,-500.0,0.00013698,2]
[333131090,1721881839460,-500.0,0.00013698,2]
[333131092,1721881839471,-503.21592375,0.00013698,2]
[333131094,1721881839481,-500.0,0.00013698,2]
[333131096,1721881839492,-500.0,0.00013698,2]
[333131098,1721881839501,-184.38103629,0.00013698,2]
[333131100,1721881839510,-500.0,0.00013698,2]
[333131123,1721881839712,-1759.01,0.00013698,2]
[333131125,1721881839725,-500.0,0.00013698,2]